bitfinex/quotes_BTCUSD_20230831
["timestamp","ask_amount","ask_price","bid_price","bid_amount"]
[1693480802522,0.09297821,27268.0,27267.0,2.76225126]
[1693480802738,0.237,27270.0,27267.0,2.85000138]
[1693480802739,0.00117821,27270.0,27267.0,2.85000138]
[1693480802949,0.36607911,27270.0,27267.0,2.85000138]
[1693480803156,0.00117821,27269.0,27267.0,3.51013938]
[1693480803565,0.36725732,27270.0,27267.0,3.45813938]
[1693480803775,0.00117821,27271.0,27268.0,0.38775012]
[1693480803975,0.36725732,27271.0,27269.0,2.64036]
[1693480804209,0.36725732,27271.0,27269.0,2.66050187]
[1693480804420,0.00117821,27272.0,27269.0,3.40834199]
[1693480804631,0.00117821,27271.0,27269.0,3.40834199]
[1693480804876,0.00117821,27272.0,27269.0,3.40834199]
[1693480805074,0.00117821,27272.0,27269.0,4.10834199]
[1693480805275,0.00117821,27271.0,27269.0,4.10834199]
[1693480806313,0.00117821,27271.0,27269.0,4.05759187]
[1693480806651,0.00117821,27271.0,27269.0,4.08859187]
[1693480806852,0.00117821,27272.0,27269.0,4.08859187]
[1693480807054,0.0918,27274.0,27269.0,4.08859187]
[1693480807055,0.00117821,27271.0,27269.0,4.08859187]
[1693480807890,0.00117821,27271.0,27269.0,4.05159187]
[1693480808295,0.00117821,27271.0,27269.0,4.08559187]
[1693480808696,0.00117821,27271.0,27269.0,4.05159187]
[1693480809107,0.00117821,27271.0,27269.0,4.08859187]
[1693480809894,0.00117821,27272.0,27269.0,4.08859187]
[1693480810815,0.00117821,27272.0,27269.0,4.05759187]
[1693480811013,0.00117821,27272.0,27269.0,4.02059187]
[1693480811211,0.00117821,27272.0,27269.0,4.07259187]
[1693480812196,0.00117821,27272.0,27269.0,4.03859187]
[1693480812327,0.00117821,27272.0,27269.0,4.07259187]
[1693480812743,0.00117821,27272.0,27269.0,4.02059187]
[1693480813161,0.00117821,27272.0,27269.0,4.03859187]
[1693480813368,0.00117821,27272.0,27269.0,4.02059187]
[1693480813900,0.00117821,27272.0,27269.0,4.05159187]
[1693480814126,0.0918,27274.0,27269.0,4.05159187]
[1693480814309,0.0918,27274.0,27270.0,0.38775012]
[1693480814310,0.36725732,27274.0,27270.0,0.38775012]
[1693480814449,0.36725732,27274.0,27271.0,2.640144]
[1693480814673,0.36725732,27274.0,27272.0,0.3]
[1693480814865,0.00117821,27274.0,27273.0,2.639972]
[1693480815518,0.00117821,27274.0,27273.0,3.339972]
[1693480816116,0.00117821,27274.0,27273.0,3.376972]
[1693480816915,0.00117821,27274.0,27273.0,3.407972]
[1693480820598,0.0918,27276.0,27273.0,3.417972]
[1693480820802,0.00117821,27275.0,27273.0,3.417972]
[1693480821003,0.09297821,27276.0,27273.0,3.417972]
[1693480821413,0.09297821,27276.0,27273.0,3.380972]
[1693480821725,0.00117821,27275.0,27273.0,3.401972]
[1693480822149,0.09297821,27276.0,27273.0,3.401972]
[1693480822355,0.09297821,27276.0,27273.0,3.370972]
[1693480822592,0.09297821,27276.0,27274.0,0.3]
[1693480822734,0.09297821,27276.0,27275.0,1.979835]
[1693480823652,0.09297821,27276.0,27275.0,2.12658]
[1693480823854,0.09297821,27276.0,27275.0,2.83258]
[1693480825307,0.09297821,27276.0,27275.0,2.85358]
[1693480826466,0.02207821,27279.0,27275.0,2.85358]
[1693480826677,0.36725732,27278.0,27276.0,0.3]
[1693480826925,0.0918,27277.0,27276.0,1.659907]
[1693480827126,0.0918,27277.0,27276.0,2.319827]
[1693480827336,0.0209,27279.0,27276.0,3.639667]
[1693480827548,0.0209,27279.0,27277.0,0.11062179]
[1693480827775,0.0209,27286.0,27276.0,3.679667]
[1693480827776,0.0209,27286.0,27283.0,0.03882179]
[1693480827989,0.0209,27286.0,27285.0,0.05882179]
[1693480828201,0.0209,27286.0,27285.0,0.15882179]
[1693480828411,0.0209,27290.0,27289.0,0.15882179]
[1693480828630,0.0209,27292.0,27291.0,0.07882179]
[1693480828631,0.41590465,27292.0,27291.0,0.07882179]
[1693480828850,0.40844308,27292.0,27291.0,0.67302635]
[1693480829063,0.0209,27296.0,27295.0,0.15882179]
[1693480829291,0.0209,27298.0,27294.0,0.03882179]
[1693480829512,0.0209,27298.0,27295.0,2.637844]
[1693480829736,0.23292788,27297.0,27295.0,1.978383]
[1693480829947,0.0918,27296.0,27295.0,1.99966869]
[1693480830168,0.1836,27296.0,27291.0,0.7]
[1693480830388,0.00117821,27293.0,27291.0,0.7]
[1693480830636,0.51364073,27292.0,27291.0,0.7]
[1693480830851,0.36607911,27295.0,27293.0,0.01882179]
[1693480831065,0.36607911,27295.0,27294.0,0.16235642]
[1693480831282,0.0209,27298.0,27297.0,0.03882179]
[1693480831519,0.0209,27298.0,27297.0,2.01706079]
[1693480831520,0.31050864,27298.0,27297.0,2.01706079]
[1693480831730,0.31050864,27298.0,27297.0,2.070039]
[1693480831731,0.0209,27298.0,27297.0,2.070039]
[1693480831961,0.0209,27298.0,27297.0,1.978239]
[1693480832183,0.38697911,27298.0,27297.0,1.755952]
[1693480832622,0.47995732,27298.0,27297.0,0.137126]
[1693480832856,0.55123732,27298.0,27294.0,0.66301463]
[1693480833072,0.0918,27295.0,27294.0,0.65948]
[1693480833311,0.45787911,27295.0,27294.0,0.65948]
[1693480833749,0.45787911,27295.0,27294.0,0.75128]
[1693480833750,0.36725732,27295.0,27294.0,0.75128]
[1693480833968,0.36725732,27295.0,27292.0,0.659523]
[1693480833969,0.00117821,27293.0,27292.0,0.659523]
[1693480834176,0.00117821,27293.0,27292.0,0.086931]
[1693480834177,0.36725732,27293.0,27292.0,0.086931]
[1693480834382,1e-08,27293.0,27292.0,0.659533]
[1693480834840,0.0209,27298.0,27292.0,0.751333]
[1693480835053,0.0209,27298.0,27293.0,0.086991]
[1693480835273,0.0209,27298.0,27294.0,1.410746]
[1693480835488,0.0209,27298.0,27295.0,0.3]
[1693480835710,0.0209,27298.0,27296.0,0.659437]
[1693480836814,0.36607911,27297.0,27295.0,0.446632]
[1693480837031,0.36607911,27297.0,27295.0,0.146632]
[1693480837248,0.36607911,27297.0,27296.0,0.038]
[1693480837872,0.36607911,27297.0,27296.0,0.06434152]
[1693480838958,1.95642352,27297.0,27296.0,0.06434152]
[1693480839219,0.526,27296.0,27295.0,0.037]
[1693480839432,0.526,27294.0,27293.0,6e-05]
[1693480839648,2.35760111,27294.0,27293.0,6e-05]
[1693480839888,0.50607911,27294.0,27293.0,6e-05]
[1693480840103,0.73129911,27294.0,27293.0,6e-05]
[1693480840313,0.73945911,27294.0,27293.0,6e-05]
[1693480840528,1.58988011,27294.0,27293.0,0.02215803]
[1693480840737,1.98027342,27294.0,27293.0,0.02515803]
[1693480840951,1.62904011,27294.0,27293.0,0.00306]
[1693480841160,1.13338421,27294.0,27293.0,0.00506]
[1693480841379,1.03047308,27294.0,27293.0,0.00506]
[1693480841583,1.00731308,27294.0,27293.0,0.00306]
[1693480841761,1.00929308,27294.0,27293.0,0.00306]
[1693480841978,0.81739308,27294.0,27293.0,0.02315803]
[1693480842188,0.85397308,27294.0,27293.0,0.02615803]
[1693480842404,0.85157308,27294.0,27293.0,0.02615803]
[1693480842621,0.60395308,27294.0,27293.0,0.03315803]
[1693480842829,0.61895308,27294.0,27293.0,0.73030703]
[1693480843036,0.015,27294.0,27293.0,1.12210703]
[1693480843242,0.26018359,27294.0,27293.0,1.12210703]
[1693480843864,0.26018359,27294.0,27293.0,1.12110703]
[1693480844292,0.26118359,27294.0,27293.0,1.13510703]
[1693480844719,0.26018359,27294.0,27293.0,1.12110703]
[1693480844928,0.26018359,27294.0,27293.0,1.85425603]
[1693480844929,0.015,27294.0,27293.0,1.85425603]
[1693480845135,0.018,27294.0,27293.0,1.94605603]
[1693480845343,0.003,27294.0,27293.0,1.85325603]
[1693480845550,0.0209,27298.0,27294.0,0.04]
[1693480845764,0.0209,27298.0,27295.0,3.17045111]
[1693480845972,0.0209,27298.0,27296.0,0.3]
[1693480846203,0.0209,27298.0,27297.0,2.179941]
[1693480846412,0.0209,27298.0,27297.0,2.479941]
[1693480847040,0.0209,27298.0,27297.0,2.50278659]
[1693480847264,0.0239,27298.0,27297.0,2.50278659]
[1693480847469,0.0209,27298.0,27297.0,2.50278659]
[1693480847682,0.0239,27298.0,27297.0,2.55978659]
[1693480847890,0.34289408,27298.0,27297.0,2.71158659]
[1693480848093,0.33989408,27298.0,27297.0,2.53955347]
[1693480848300,0.33989408,27298.0,27297.0,2.52278659]
[1693480848722,0.33989408,27298.0,27297.0,2.70639359]
[1693480848723,0.34289408,27298.0,27297.0,2.70639359]
[1693480849124,0.33989408,27298.0,27297.0,2.66939359]
[1693480849327,0.34289408,27298.0,27297.0,2.70639359]
[1693480849533,0.34589408,27298.0,27297.0,2.74339359]
[1693480849976,0.34289408,27298.0,27297.0,2.70639359]
[1693480850398,0.34589408,27298.0,27297.0,2.74339359]
[1693480851051,0.0269,27298.0,27297.0,2.74339359]
[1693480851702,0.27570696,27298.0,27297.0,2.74339359]
[1693480852931,0.0269,27298.0,27297.0,2.74339359]
[1693480853151,0.32285027,27298.0,27297.0,2.74339359]
[1693480853725,0.0269,27298.0,27297.0,1.93554659]
[1693480854058,0.69207509,27298.0,27297.0,1.93554659]
[1693480854289,0.68907509,27298.0,27297.0,1.89854659]
[1693480854835,0.68607509,27298.0,27297.0,1.86154659]
[1693480855024,0.38697911,27298.0,27297.0,1.86154659]
[1693480855221,0.64164662,27298.0,27297.0,1.89854659]
[1693480855453,0.63864662,27298.0,27297.0,1.95334659]
[1693480855655,0.63864662,27298.0,27297.0,2.64939359]
[1693480855838,0.64164662,27298.0,27297.0,2.68639359]
[1693480856034,0.64164662,27298.0,27297.0,2.72339359]
[1693480856257,0.64464662,27298.0,27297.0,2.72339359]
[1693480856814,0.64164662,27298.0,27297.0,2.68639359]
[1693480857020,0.64464662,27298.0,27297.0,2.72339359]
[1693480858314,0.27856751,27298.0,27297.0,2.72339359]
[1693480858978,0.0209,27299.0,27298.0,0.55058316]
[1693480859192,0.0209,27299.0,27298.0,2.93864616]
[1693480859859,0.0209,27299.0,27298.0,2.9620148]
[1693480860065,0.0209,27299.0,27298.0,3.0538148]
[1693480860275,0.0219,27299.0,27298.0,3.09272579]
[1693480860900,0.0209,27299.0,27298.0,3.05572579]
[1693480861331,0.0219,27299.0,27298.0,3.09272579]
[1693480861532,0.0219,27299.0,27298.0,3.12272579]
[1693480861969,0.0219,27299.0,27298.0,3.27452579]
[1693480862184,0.0219,27299.0,27298.0,3.6406049]
[1693480862393,0.1371257,27300.0,27299.0,0.04]
[1693480862608,0.1371257,27300.0,27299.0,2.90586711]
[1693480863241,0.0208,27301.0,27300.0,0.04]
[1693480863456,0.0209,27304.0,27302.0,0.04]
[1693480863664,0.0209,27304.0,27303.0,3.18965511]
[1693480863872,0.0005232,27311.0,27307.0,0.04]
[1693480864084,0.0005232,27311.0,27308.0,2.783044]
[1693480864291,0.0005232,27311.0,27309.0,0.3]
[1693480864292,0.29008814,27310.0,27309.0,0.3]
[1693480864509,0.29008814,27310.0,27309.0,2.479023]
[1693480864718,0.2404,27313.0,27309.0,2.479023]
[1693480864940,0.2404,27313.0,27309.0,2.387223]
[1693480864941,0.30896033,27310.0,27309.0,2.387223]
[1693480865155,0.0209,27314.0,27311.0,0.04]
[1693480865360,0.155,27321.0,27315.0,0.04]
[1693480865361,0.06413784,27321.0,27315.0,0.04]
[1693480865572,0.0209,27323.0,27320.0,0.1836]
[1693480865795,0.0209,27323.0,27322.0,0.0918]
[1693480866001,0.0209,27323.0,27322.0,0.78721]
[1693480866250,0.0209,27323.0,27322.0,2.17803]
[1693480866425,0.0209,27326.0,27325.0,0.02]
[1693480866638,0.0209,27326.0,27325.0,2.105999]
[1693480866842,0.0209,27326.0,27325.0,2.801332]
[1693480867058,0.0209,27326.0,27325.0,3.122532]
[1693480867280,0.731508,27341.0,27329.0,0.1]
[1693480867510,0.00021644,27344.0,27343.0,0.06]
[1693480867721,0.00021644,27344.0,27343.0,1.97583111]
[1693480867937,0.02019,27350.0,27349.0,0.06]
[1693480867938,0.33359645,27350.0,27349.0,0.06]
[1693480868152,0.01540644,27350.0,27349.0,1.570846]
[1693480868367,0.0209,27351.0,27350.0,0.22]
[1693480868578,1.0,27353.0,27352.0,0.42]
[1693480868808,1.0,27353.0,27352.0,2.706741]
[1693480869016,1.0,27353.0,27351.0,0.474667]
[1693480869247,1.0,27353.0,27348.0,0.06]
[1693480869248,0.36607911,27352.0,27348.0,0.06]
[1693480869458,1.0,27353.0,27352.0,0.06]
[1693480869692,1.0,27353.0,27352.0,1.40352611]
[1693480869909,1.0,27353.0,27352.0,0.694647]
[1693480870135,1.06,27353.0,27346.0,0.4214]
[1693480870348,1.06,27353.0,27347.0,0.3]
[1693480870560,0.06,27351.0,27348.0,0.034]
[1693480870766,0.36607911,27350.0,27348.0,0.034]
[1693480871200,0.36607911,27350.0,27347.0,0.3]
[1693480871454,0.36607911,27350.0,27347.0,0.994769]
[1693480871658,0.36607911,27350.0,27347.0,0.996769]
[1693480871863,0.51246252,27350.0,27347.0,0.3]
[1693480872279,0.51246252,27350.0,27344.0,0.3]
[1693480872280,0.36607911,27350.0,27344.0,0.3]
[1693480872484,0.14638341,27349.0,27344.0,0.3]
[1693480872718,0.36607911,27348.0,27344.0,0.3]
[1693480872925,0.51246252,27348.0,27344.0,0.3]
[1693480873135,0.14638341,27347.0,27344.0,0.146384]
[1693480873348,0.64807911,27345.0,27344.0,0.146384]
[1693480873567,0.64807911,27345.0,27334.0,0.04]
[1693480873568,0.06,27341.0,27334.0,0.04]
[1693480873780,0.02,27339.0,27334.0,0.04]
[1693480874006,0.51246252,27338.0,27334.0,0.04]
[1693480874216,0.51246252,27338.0,27332.0,0.04]
[1693480874425,0.51246252,27338.0,27334.0,0.04]
[1693480874426,0.60318252,27338.0,27334.0,0.04]
[1693480874630,0.51246252,27338.0,27335.0,0.02209372]
[1693480874846,0.04,27337.0,27335.0,0.02209372]
[1693480875058,0.36607911,27336.0,27334.0,0.003]
[1693480875266,0.44965911,27336.0,27330.0,0.04]
[1693480875488,0.14638341,27335.0,27332.0,0.018]
[1693480875707,0.06558,27335.0,27331.0,0.04]
[1693480875914,0.36607911,27334.0,27331.0,0.735173]
[1693480876126,0.36607911,27334.0,27331.0,0.04]
[1693480876127,0.51246252,27334.0,27331.0,0.04]
[1693480876335,0.10726,27333.0,27330.0,0.01]
[1693480876561,0.1096,27333.0,27330.0,0.01]
[1693480876765,0.222,27331.0,27330.0,0.01]
[1693480876969,0.58807911,27331.0,27330.0,0.01]
[1693480877180,1.38890811,27331.0,27330.0,0.01]
[1693480877429,1.38248811,27331.0,27330.0,0.01]
[1693480877646,1.13784811,27331.0,27330.0,0.01]
[1693480878087,0.04,27329.0,27323.0,0.04]
[1693480878309,0.51246252,27328.0,27323.0,0.735379]
[1693480878519,0.51246252,27328.0,27322.0,0.04]
[1693480878733,0.02,27327.0,27321.0,0.04]
[1693480878949,0.51246252,27326.0,27321.0,0.04]
[1693480879194,0.5114163,27326.0,27322.0,0.06]
[1693480879411,0.36607911,27326.0,27322.0,0.06]
[1693480879622,0.36607911,27326.0,27322.0,0.08217305]
[1693480879826,0.36607911,27326.0,27322.0,0.1555314]
[1693480880443,0.36607911,27326.0,27323.0,0.001]
[1693480880850,0.36707911,27326.0,27322.0,0.082]
[1693480881056,0.36707911,27326.0,27322.0,0.087]
[1693480881389,0.36607911,27326.0,27322.0,0.755408]
[1693480881599,0.36707911,27326.0,27323.0,0.027]
[1693480881832,0.36707911,27326.0,27323.0,0.022]
[1693480882663,0.07626,27325.0,27323.0,0.022]
[1693480882875,0.38607911,27324.0,27323.0,0.01203456]
[1693480883084,1.19603611,27324.0,27323.0,0.01203456]
[1693480883283,1.22725611,27324.0,27323.0,0.01203456]
[1693480883496,1.22623611,27324.0,27323.0,0.01203456]
[1693480883701,1.22533611,27324.0,27323.0,0.01203456]
[1693480883907,1.22605611,27324.0,27323.0,0.001]
[1693480884112,1.22551611,27324.0,27323.0,0.001]
[1693480884316,1.22377611,27324.0,27322.0,0.02]
[1693480884535,1.22341611,27324.0,27318.0,0.12]
[1693480884748,0.21199719,27323.0,27318.0,0.12]
[1693480884970,0.36607911,27322.0,27318.0,0.12]
[1693480885163,0.5114163,27322.0,27318.0,0.12]
[1693480885368,0.36607911,27322.0,27318.0,0.12]
[1693480885572,0.5114163,27322.0,27318.0,0.12]
[1693480885771,0.36607911,27322.0,27318.0,0.06]
[1693480885969,1.2434293,27322.0,27318.0,0.06]
[1693480886176,0.06408,27321.0,27317.0,0.36]
[1693480886473,0.36607911,27320.0,27317.0,0.36]
[1693480886678,0.36607911,27320.0,27318.0,0.003]
[1693480886919,0.36607911,27320.0,27318.0,0.006]
[1693480887126,0.36607911,27320.0,27316.0,0.06]
[1693480887323,0.36607911,27320.0,27317.0,0.002]
[1693480887524,1.83021811,27320.0,27317.0,0.003]
[1693480887724,1.89657811,27320.0,27317.0,0.011]
[1693480887963,1.17458311,27320.0,27318.0,0.001]
[1693480888167,1.17854311,27320.0,27318.0,0.001]
[1693480888369,1.16594311,27320.0,27317.0,0.01]
[1693480888568,1.17144311,27320.0,27317.0,0.01]
[1693480888786,1.17024311,27320.0,27317.0,0.01]
[1693480888959,1.16754311,27320.0,27317.0,0.01]
[1693480889141,1.16712311,27320.0,27317.0,0.01]
[1693480889353,1.16754311,27320.0,27317.0,0.01]
[1693480889601,1.10514311,27320.0,27318.0,1.07314541]
[1693480889809,1.10514311,27320.0,27319.0,1.05506629]
[1693480890020,1.09814311,27320.0,27319.0,1.05506629]
[1693480890224,1.83720711,27320.0,27319.0,1.05506629]
[1693480890426,1.97472711,27320.0,27319.0,1.05506629]
[1693480890663,2.70485111,27320.0,27319.0,1.05506629]
[1693480890855,1.96066711,27320.0,27319.0,1.06206629]
[1693480891080,2.00740711,27320.0,27319.0,1.06206629]
[1693480891287,1.99486711,27320.0,27319.0,1.06206629]
[1693480891478,1.99486711,27320.0,27319.0,1.07623986]
[1693480891479,2.00392711,27320.0,27319.0,1.07623986]
[1693480891680,2.02554711,27320.0,27319.0,1.07923986]
[1693480891832,2.75797111,27320.0,27319.0,1.07923986]
[1693480892049,2.75797111,27320.0,27319.0,0.006]
[1693480892050,3.14613111,27320.0,27319.0,0.006]
[1693480892263,3.36695111,27320.0,27319.0,0.006]
[1693480892462,3.35867111,27320.0,27319.0,0.006]
[1693480892692,3.36677111,27320.0,27319.0,0.006]
[1693480892889,3.87343022,27320.0,27319.0,0.006]
[1693480893090,0.08,27318.0,27312.0,0.06]
[1693480893298,2.8898963,27317.0,27313.0,1.05517397]
[1693480893672,0.06216,27316.0,27313.0,1.05517397]
[1693480893879,0.36607911,27315.0,27313.0,1.05517397]
[1693480894255,0.36607911,27314.0,27313.0,1.05517397]
[1693480894508,0.63664212,27315.0,27314.0,0.32637614]
[1693480894687,0.63664212,27315.0,27314.0,1.38155011]
[1693480894904,0.0627,27316.0,27314.0,1.30554778]
[1693480895110,0.24022,27325.0,27317.0,0.06]
[1693480895321,0.182,27327.0,27319.0,1.450952]
[1693480895322,0.771893,27327.0,27319.0,1.450952]
[1693480895539,0.771893,27327.0,27321.0,0.05003383]
[1693480895540,0.02,27326.0,27321.0,0.05003383]
[1693480895746,0.02,27326.0,27322.0,1.05517397]
[1693480895952,0.751906,27326.0,27322.0,1.05517397]
[1693480896776,0.02,27326.0,27322.0,1.05517397]
[1693480896980,0.019,27326.0,27323.0,0.05003383]
[1693480897245,0.019,27326.0,27324.0,1.15309242]
[1693480897246,0.031,27326.0,27324.0,1.15309242]
[1693480897447,0.031,27326.0,27325.0,1.05517397]
[1693480897870,0.012,27326.0,27325.0,1.05517397]
[1693480898069,0.019,27326.0,27325.0,1.05517397]
[1693480898483,0.031,27326.0,27325.0,1.05517397]
[1693480899514,0.031,27326.0,27325.0,2.4958738]
[1693480899515,0.012,27326.0,27325.0,2.4958738]
[1693480899719,0.02,27331.0,27327.0,0.05003383]
[1693480899929,0.02,27331.0,27328.0,1.05517397]
[1693480900135,0.02,27331.0,27329.0,1.05517397]
[1693480900342,0.77168,27335.0,27330.0,1.1048077]
[1693480900549,0.77168,27335.0,27331.0,1.05477387]
[1693480900550,1.50336,27335.0,27331.0,1.05477387]
[1693480900960,0.73168,27335.0,27332.0,0.05003383]
[1693480901784,0.36607911,27334.0,27330.0,0.05003383]
[1693480901987,1.463442,27333.0,27331.0,1.05483433]
[1693480902166,0.36607911,27332.0,27331.0,1.05483433]
[1693480902402,1.82956511,27332.0,27331.0,1.05483433]
[1693480902819,2.64074811,27332.0,27331.0,1.05783433]
[1693480903036,3.05546486,27332.0,27331.0,1.05483433]
[1693480903235,0.02,27331.0,27330.0,0.003]
[1693480903443,0.38607911,27331.0,27330.0,0.003]
[1693480903651,0.38607911,27331.0,27328.0,0.05003383]
[1693480903863,0.38607911,27331.0,27329.0,1.05487391]
[1693480904079,0.029,27332.0,27330.0,0.01662982]
[1693480904284,0.38307911,27332.0,27330.0,0.06666365]
[1693480904500,0.012,27331.0,27330.0,0.06866365]
[1693480904646,0.029,27331.0,27330.0,0.06966365]
[1693480904853,0.029,27331.0,27330.0,1.12445572]
[1693480905056,0.029,27331.0,27330.0,1.81966172]
[1693480905259,0.029,27331.0,27330.0,1.12445572]
[1693480905866,0.017,27331.0,27330.0,1.12245572]
[1693480906066,0.029,27331.0,27330.0,1.12245572]
[1693480906494,0.02,27334.0,27331.0,0.05003383]
[1693480906727,1.11777111,27334.0,27331.0,0.05003383]
[1693480906918,0.017,27332.0,27331.0,0.05003383]
[1693480907053,0.017,27332.0,27331.0,1.10479742]
[1693480907397,1.84947111,27334.0,27331.0,1.10479742]
[1693480907644,1.84947111,27334.0,27331.0,0.05003383]
[1693480907857,1.86147111,27334.0,27331.0,0.05303383]
[1693480908066,0.012,27334.0,27333.0,0.05003383]
[1693480909103,0.012,27334.0,27331.0,0.05203383]
[1693480909104,2.9873125,27334.0,27331.0,0.05203383]
[1693480909315,0.012,27332.0,27331.0,0.05503383]
[1693480909493,2.60130811,27332.0,27331.0,0.002]
[1693480909928,2.67132811,27332.0,27331.0,0.01872442]
[1693480910131,2.66298811,27332.0,27331.0,0.01672442]
[1693480910304,2.66298811,27332.0,27331.0,0.003]
[1693480910305,0.36607911,27332.0,27331.0,0.003]
[1693480910535,0.37807911,27332.0,27331.0,0.006]
[1693480910738,0.012,27332.0,27331.0,0.06970511]
[1693480911158,0.029,27332.0,27331.0,0.07170511]
[1693480912801,0.017,27332.0,27331.0,0.06870511]
[1693480913008,0.028,27332.0,27331.0,0.07070511]
[1693480913214,0.011,27332.0,27331.0,0.06870511]
[1693480913393,0.011,27332.0,27331.0,0.06970511]
[1693480913394,1.85656511,27332.0,27331.0,0.06970511]
[1693480913835,1.92688511,27332.0,27331.0,0.06970511]
[1693480914055,1.92670511,27332.0,27331.0,0.06970511]
[1693480914257,1.92664511,27332.0,27331.0,0.06970511]
[1693480914466,1.92616511,27332.0,27331.0,0.06970511]
[1693480914674,2.65514811,27332.0,27331.0,0.06970511]
[1693480914850,2.65628811,27332.0,27331.0,0.06970511]
[1693480915062,2.65310811,27332.0,27331.0,0.06970511]
[1693480915285,2.58830811,27332.0,27331.0,0.06970511]
[1693480915697,2.65334811,27332.0,27331.0,0.06970511]
[1693480915924,2.65214811,27332.0,27331.0,0.06970511]
[1693480916129,2.65046811,27332.0,27331.0,0.06970511]
[1693480916344,2.65274811,27332.0,27331.0,0.06970511]
[1693480916555,2.66048811,27332.0,27331.0,0.06970511]
[1693480916758,2.66138811,27332.0,27331.0,0.01967128]
[1693480916959,2.68828811,27332.0,27331.0,0.01967128]
[1693480917202,3.25357092,27332.0,27331.0,0.01967128]
[1693480917407,3.26569092,27332.0,27331.0,0.01967128]
[1693480917615,3.27259092,27332.0,27331.0,0.003]
[1693480917822,3.27643092,27332.0,27331.0,0.003]
[1693480918026,3.29421092,27332.0,27331.0,0.003]
[1693480918229,0.04,27330.0,27327.0,0.05003383]
[1693480918437,2.56154811,27329.0,27327.0,0.13601048]
[1693480918645,2.63402811,27329.0,27328.0,0.01483311]
[1693480918857,2.64146811,27329.0,27328.0,0.01483311]
[1693480919068,2.56154811,27329.0,27328.0,0.01483311]
[1693480919274,2.79559178,27329.0,27328.0,0.01483311]
[1693480919479,2.65286811,27329.0,27328.0,0.10080976]
[1693480919620,2.67130811,27329.0,27328.0,0.01483311]
[1693480920004,2.56154811,27329.0,27328.0,0.01483311]
[1693480920186,2.56154811,27329.0,27328.0,0.10797665]
[1693480920407,2.64790811,27329.0,27328.0,0.13801048]
[1693480920610,0.38607911,27329.0,27328.0,0.19833947]
[1693480920822,0.40107911,27329.0,27328.0,0.63198947]
[1693480921002,0.40107911,27329.0,27328.0,0.19933947]
[1693480921225,0.035,27329.0,27328.0,0.80394278]
[1693480921427,0.035,27329.0,27328.0,0.6749778]
[1693480921642,0.035,27329.0,27328.0,1.58517643]
[1693480922062,0.035,27329.0,27328.0,0.6749778]
[1693480922316,0.40107911,27329.0,27328.0,0.28789786]
[1693480922496,0.40107911,27329.0,27328.0,0.28791652]
[1693480922497,1.86472511,27329.0,27328.0,0.28791652]
[1693480922725,0.40107911,27329.0,27328.0,0.20088598]
[1693480922918,0.40107911,27329.0,27328.0,0.63355092]
[1693480923540,0.40107911,27329.0,27328.0,0.80550423]
[1693480923749,0.40107911,27329.0,27328.0,0.67499274]
[1693480923952,0.40107911,27329.0,27328.0,0.65765208]
[1693480924367,1.86472511,27329.0,27328.0,0.6162457]
[1693480924597,1.86472511,27329.0,27328.0,0.14007308]
[1693480924841,1.92736511,27329.0,27328.0,0.14007308]
[1693480925045,1.93636511,27329.0,27328.0,0.14007308]
[1693480925251,1.92952511,27329.0,27328.0,0.14007308]
[1693480925465,1.93258511,27329.0,27328.0,0.14007308]
[1693480925671,1.92820511,27329.0,27328.0,0.14007308]
[1693480925877,1.94692511,27329.0,27328.0,0.14007308]
[1693480926078,2.68006811,27329.0,27328.0,0.14007308]
[1693480926280,2.66638811,27329.0,27328.0,0.14007308]
[1693480926488,2.66122811,27329.0,27328.0,0.14007308]
[1693480926702,2.66170811,27329.0,27328.0,0.14007308]
[1693480926875,2.66032811,27329.0,27328.0,0.14007308]
[1693480927085,2.66098811,27329.0,27328.0,0.14007308]
[1693480927284,3.03492692,27329.0,27328.0,0.14007308]
[1693480927512,2.67718811,27329.0,27328.0,0.05303383]
[1693480927721,2.68372811,27329.0,27328.0,0.003]
[1693480927904,2.69680811,27329.0,27328.0,0.003]
[1693480928101,2.71134811,27329.0,27328.0,0.003]
[1693480928329,2.71314811,27329.0,27328.0,0.003]
[1693480928530,2.71698811,27329.0,27328.0,0.003]
[1693480928637,2.71356811,27329.0,27328.0,0.003]
[1693480928841,3.09964722,27329.0,27328.0,0.003]
[1693480929068,3.11920722,27329.0,27328.0,0.003]
[1693480929278,3.11890722,27329.0,27328.0,0.003]
[1693480929570,3.11794722,27329.0,27328.0,0.003]
[1693480929771,2.73686811,27329.0,27328.0,0.003]
[1693480929979,2.72138811,27329.0,27328.0,0.003]
[1693480930174,2.72504811,27329.0,27328.0,0.003]
[1693480930398,2.72744811,27329.0,27328.0,0.003]
[1693480930658,3.27982811,27329.0,27328.0,0.003]
[1693480930992,3.64806722,27329.0,27328.0,0.003]
[1693480931191,3.63810722,27329.0,27328.0,0.003]
[1693480931399,3.13600811,27329.0,27328.0,0.003]
[1693480931625,0.40107911,27329.0,27328.0,0.05303383]
[1693480931838,0.035,27329.0,27328.0,0.74829083]
[1693480932043,0.035,27329.0,27328.0,1.74354783]
[1693480933702,0.035,27329.0,27328.0,0.05303383]
[1693480934142,2.0100623,27329.0,27328.0,0.05303383]
[1693480934341,2.66170811,27329.0,27328.0,0.05303383]
[1693480934493,2.65852811,27329.0,27328.0,0.05303383]
[1693480934694,2.59654811,27329.0,27328.0,0.05303383]
[1693480935494,0.40107911,27329.0,27328.0,0.05303383]
[1693480935895,0.40107911,27329.0,27328.0,0.74829083]
[1693480936099,0.035,27329.0,27328.0,0.74829083]
[1693480936311,0.035,27329.0,27328.0,1.44354783]
[1693480936530,0.035,27329.0,27328.0,0.74829083]
[1693480937952,1.86472511,27329.0,27328.0,0.05303383]
[1693480938154,2.04672511,27329.0,27328.0,0.05303383]
[1693480938376,2.85828811,27329.0,27328.0,0.05303383]
[1693480938547,2.77854811,27329.0,27328.0,0.05303383]
[1693480939173,1.86472511,27329.0,27328.0,0.05303383]
[1693480939408,0.40107911,27329.0,27328.0,0.05303383]
[1693480940485,0.035,27329.0,27328.0,2.53880483]
[1693480940707,0.035,27329.0,27328.0,2.59880483]